Workbook

Sheet saf1
H8: =COLUMN() -> 8 | I8: =COLUMN() -> 9 | J8: =COLUMN() -> 10 | K8: =COLUMN() -> 11 | L8: =COLUMN() -> 12 | M8: =COLUMN() -> 13 | N8: =COLUMN() -> 14 | O8: =COLUMN() -> 15 | P8: =COLUMN() -> 16 | Q8: =COLUMN() -> 17 | R8: =COLUMN() -> 18 | S8: =COLUMN() -> 19 | T8: =COLUMN() -> 20 | U8: =COLUMN() -> 21 | V8: =COLUMN() -> 22 | W8: =COLUMN() -> 23 | X8: =COLUMN() -> 24 | Y8: =COLUMN() -> 25 | Z8: =COLUMN() -> 26 | AA8: =COLUMN() -> 27 | AB8: =COLUMN() -> 28 | AC8: =COLUMN() -> 29 | AD8: =COLUMN() -> 30 | AE8: =COLUMN() -> 31 | AF8: =COLUMN() -> 32 | AG8: =COLUMN() -> 33 | AH8: =COLUMN() -> 34 | AI8: =COLUMN() -> 35 | AJ8: =COLUMN() -> 36 | AK8: =COLUMN() -> 37 | AL8: =COLUMN() -> 38 | AM8: =COLUMN() -> 39 | AN8: =COLUMN() -> 40 | AO8: =COLUMN() -> 41 | AP8: =COLUMN() -> 42 | AQ8: =COLUMN() -> 43 | AR8: =COLUMN() -> 44 | AS8: =COLUMN() -> 45 | AT8: =COLUMN() -> 46 | AU8: =COLUMN() -> 47 | AV8: =COLUMN() -> 48 | AW8: =COLUMN() -> 49 | AX8: =COLUMN() -> 50 | AY8: =COLUMN() -> 51 | AZ8: =COLUMN() -> 52 | BA8: =COLUMN() -> 53 | BB8: =COLUMN() -> 54 | BC8: =COLUMN() -> 55 | BD8: =COLUMN() -> 56 | BE8: =COLUMN() -> 57 | BF8: =COLUMN() -> 58 | BG8: =COLUMN() -> 59 | BH8: =COLUMN() -> 60 | BI8: =COLUMN() -> 61 | BJ8: =COLUMN() -> 62 | BK8: =COLUMN() -> 63 | BL8: =COLUMN() -> 64 | BM8: =COLUMN() -> 65 | BN8: =COLUMN() -> 66 | BO8: =COLUMN() -> 67 | BP8: =COLUMN() -> 68 | BQ8: =COLUMN() -> 69 | BR8: =COLUMN() -> 70 | BS8: =COLUMN() -> 71 | BT8: =COLUMN() -> 72 | BU8: =COLUMN() -> 73 | BV8: =COLUMN() -> 74 | BW8: =COLUMN() -> 75 | BX8: =COLUMN() -> 76 | BY8: =COLUMN() -> 77 | BZ8: =COLUMN() -> 78 | CA8: =COLUMN() -> 79 | CB8: =COLUMN() -> 80 | CC8: =COLUMN() -> 81 | CD8: =COLUMN() -> 82 | CE8: =COLUMN() -> 83 | CF8: =COLUMN() -> 84 | CG8: =COLUMN() -> 85 | CH8: =COLUMN() -> 86 | CI8: =COLUMN() -> 87 | CJ8: =COLUMN() -> 88 | CK8: =COLUMN() -> 89 | CL8: =COLUMN() -> 90 | CM8: =COLUMN() -> 91 | CN8: =COLUMN() -> 92 | CO8: =COLUMN() -> 93 | CP8: =COLUMN() -> 94 | CQ8: =COLUMN() -> 95 | CR8: =COLUMN() -> 96 | CS8: =COLUMN() -> 97 | CT8: =COLUMN() -> 98 | CU8: =COLUMN() -> 99 | CV8: =COLUMN() -> 100 | CW8: =COLUMN() -> 101 | CX8: =COLUMN() -> 102 | CY8: =COLUMN() -> 103 | CZ8: =COLUMN() -> 104 | DA8: =COLUMN() -> 105 | DB8: =COLUMN() -> 106 | DC8: =COLUMN() -> 107 | DD8: =COLUMN() -> 108 | DE8: =COLUMN() -> 109 | DF8: =COLUMN() -> 110 | DG8: =COLUMN() -> 111 | DH8: =COLUMN() -> 112 | DI8: =COLUMN() -> 113 | DJ8: =COLUMN() -> 114 | DK8: =COLUMN() -> 115 | DL8: =COLUMN() -> 116 | DM8: =COLUMN() -> 117 | DN8: =COLUMN() -> 118 | DO8: =COLUMN() -> 119 | DP8: =COLUMN() -> 120 | DQ8: =COLUMN() -> 121 | DR8: =COLUMN() -> 122 | DS8: =COLUMN() -> 123 | DT8: =COLUMN() -> 124 | DU8: =COLUMN() -> 125 | DV8: =COLUMN() -> 126 | DW8: =COLUMN() -> 127 | DX8: =COLUMN() -> 128 | DY8: =COLUMN() -> 129 | DZ8: =COLUMN() -> 130 | EA8: =COLUMN() -> 131 | EB8: =COLUMN() -> 132 | EC8: =COLUMN() -> 133 | ED8: =COLUMN() -> 134 | EE8: =COLUMN() -> 135 | EF8: =COLUMN() -> 136 | EG8: =COLUMN() -> 137 | EH8: =COLUMN() -> 138 | EI8: =COLUMN() -> 139 | EJ8: =COLUMN() -> 140 | EK8: =COLUMN() -> 141 | EL8: =COLUMN() -> 142 | EM8: =COLUMN() -> 143 | EN8: =COLUMN() -> 144 | EO8: =COLUMN() -> 145 | EP8: =COLUMN() -> 146 | EQ8: =COLUMN() -> 147 | ER8: =COLUMN() -> 148 | ES8: =COLUMN() -> 149 | ET8: =COLUMN() -> 150 | EU8: =COLUMN() -> 151 | EV8: =COLUMN() -> 152 | EW8: =COLUMN() -> 153 | EX8: =COLUMN() -> 154 | EY8: =COLUMN() -> 155 | EZ8: =COLUMN() -> 156 | FA8: =COLUMN() -> 157 | FB8: =COLUMN() -> 158 | FC8: =COLUMN() -> 159 | FD8: =COLUMN() -> 160 | FE8: =COLUMN() -> 161 | FF8: =COLUMN() -> 162 | FG8: =COLUMN() -> 163 | FH8: =COLUMN() -> 164 | FI8: =COLUMN() -> 165 | FJ8: =COLUMN() -> 166 | FK8: =COLUMN() -> 167 | FL8: =COLUMN() -> 168 | FM8: =COLUMN() -> 169 | FN8: =COLUMN() -> 170 | FO8: =COLUMN() -> 171 | FP8: =COLUMN() -> 172 | FQ8: =COLUMN() -> 173 | FR8: =COLUMN() -> 174 | FS8: =COLUMN() -> 175 | FT8: =COLUMN() -> 176 | FU8: =COLUMN() -> 177 | FV8: =COLUMN() -> 178 | FW8: =COLUMN() -> 179 | FX8: =COLUMN() -> 180 | FY8: =COLUMN() -> 181 | FZ8: =COLUMN() -> 182 | GA8: =COLUMN() -> 183 | GB8: =COLUMN() -> 184 | GC8: =COLUMN() -> 185 | GD8: =COLUMN() -> 186 | GE8: =COLUMN() -> 187 | GF8: =COLUMN() -> 188 | GG8: =COLUMN() -> 189
GG9: له دور ثانى في*
E10: مسلسل | F10: الشيت | G10: ترقيم الشيت | H10: رقم الجلوس | I10: الاسم | J10: اللجنة | K10: الفصل | M10: اللغة العربية | AT10: جغرافية مصر الاقتصادية | BD10: رياضيات عامة | BN10: مبادئ الاقتصاد | BX10: مبادئ المحاسبة المالية | CH10: السكرتارية باللغة العربية | CR10: السكرتارية باللغة الأجنبية | DB10: مبادئ التسويق | DL10: مبادئ القانون التجارى | DV10: مبادئ إدارة الأعمال | EF10: حاسب آلي | EW10: تربية وطنية | FJ10: التربية الدينية
M11: أعمال السنة | N11: نصف العام | O11: نهاية العام | P11: مجموع عربي | T11: مجموع عربي | W11: لغة أجنبية أولي | AG11: لغة أجنبية ثانية | AQ11: مجموع لغات | AT11: أعمال السنة | AU11: نصف العام | AV11: نهاية العام | AW11: مجموع جغرافيا | BA11: مجموع جغرافيا | BD11: أعمال السنة | BE11: نصف العام | BF11: نهاية العام | BG11: مجموع رياضة | BK11: مجموع رياضة | BN11: أعمال السنة | BO11: نصف العام | BP11: نهاية العام | BQ11: مجموع اقتصاد | BU11: مجموع اقتصاد | BX11: أعمال السنة | BY11: نصف العام | BZ11: نهاية العام | CA11: مجموع محاسبة | CE11: مجموع محاسبة | CH11: أعمال السنة | CI11: نصف العام | CJ11: نهاية العام | CK11: مجـ سكرتارية عربي | CO11: مجـ سكرتارية عربي | CR11: أعمال السنة | CS11: نصف العام | CT11: نهاية العام | CU11: مجـ سكرتارية انجليزي | CY11: مجـ سكرتارية انجليزي | DB11: أعمال السنة | DC11: نصف العام | DD11: نهاية العام | DE11: مجموع تسويق | DI11: مجموع تسويق | DL11: أعمال السنة | DM11: نصف العام | DN11: نهاية العام | DO11: مجـ قانون تجاري | DS11: مجـ قانون تجاري | DV11: أعمال السنة | DW11: نصف العام | DX11: نهاية العام | DY11: مجـ ادارة اعمال | EC11: مجـ ادارة اعمال | EF11: أعمال السنة | EG11: نصف العام | EH11: نهاية العام | EI11: مجــ عملي حاسب | EK11: أعمال السنة | EL11: نصف العام | EM11: نهاية العام | EN11: مجـ تحريري حاسب | ET11: مجـ كلي حاسب | EW11: أعمال السنة | EX11: نصف العام | EY11: نهاية العام | EZ11: مجـموع وطنية | FD11: مجـموع وطنية | FG11: المجـموع الكلي | FJ11: أعمال السنة | FK11: نصف العام | FL11: نهاية العام | FM11: مجموع دين | FQ11: مجموع دين
W12: أعمال السنة | X12: نصف العام | Y12: نهاية العام | Z12: مجموع انجليزي | AD12: مجموع انجليزي | AG12: أعمال السنة | AH12: نصف العام | AI12: نهاية العام | AJ12: مجموع فرنساوي | AN12: مجموع فرنساوي | AR12: =COUNTIF(AR17:AR50006,"0") -> 10
AQ13: مجموع لغات | EV13: مجـ حاسب*
M14: 10 | N14: 20 | O14: 20 | P14: 50 | T14: =M14+N14+O14 -> 50 | U14: تمهيد | W14: 10 | X14: 20 | Y14: 20 | Z14: 50 | AD14: =W14+X14+Y14 -> 50 | AE14: تمهيد | AG14: 6 | AH14: 12 | AI14: 12 | AJ14: 30 | AN14: =AG14+AH14+AI14 -> 30 | AO14: تمهيد | AQ14: =AN14+AD14 -> 80 | AR14: تمهيد | AT14: 8 | AU14: 16 | AV14: 16 | AW14: 40 | BA14: =AV14+AU14+AT14 -> 40 | BB14: تمهيد | BD14: 6 | BE14: 12 | BF14: 12 | BG14: 30 | BK14: =BF14+BE14+BD14 -> 30 | BL14: تمهيد | BN14: 10 | BO14: 20 | BP14: 20 | BQ14: 50 | BU14: =BP14+BO14+BN14 -> 50 | BV14: تمهيد | BX14: 10 | BY14: 20 | BZ14: 20 | CA14: 50 | CE14: =BZ14+BY14+BX14 -> 50 | CF14: تمهيد | CH14: 10 | CI14: 20 | CJ14: 20 | CK14: 50 | CO14: =CJ14+CI14+CH14 -> 50 | CP14: تمهيد | CR14: 10 | CS14: 20 | CT14: 20 | CU14: 50 | CY14: =CT14+CS14+CR14 -> 50 | CZ14: تمهيد | DB14: 10 | DC14: 20 | DD14: 20 | DE14: 50 | DI14: =DD14+DC14+DB14 -> 50 | DJ14: تمهيد | DL14: 10 | DM14: 20 | DN14: 20 | DO14: 50 | DS14: =DN14+DM14+DL14 -> 50 | DT14: تمهيد | DV14: 10 | DW14: 20 | DX14: 20 | DY14: 50 | EC14: =DX14+DW14+DV14 -> 50 | ED14: تمهيد | EF14: 4 | EG14: 8 | EH14: 8 | EI14: =SUM(EF14:EH14) -> 20 | EJ14: حاسب عملي* | EK14: 6 | EL14: 12 | EM14: 12 | EN14: =SUM(EK14:EM14) -> 30 | EO14: حاسب تحريري* | ET14: =EN14+EI14 -> 50 | EU14: تمهيد | EW14: 4 | EX14: 8 | EY14: 8 | EZ14: 20 | FD14: =EY14+EX14+EW14 -> 20 | FE14: تمهيد | FG14: =T14+AQ14+BA14+BK14+BU14+CE14+CO14+CY14+DI14+DS14+EC14+ET14+FD14 -> 620 | FH14: تمهيد | FJ14: 4 | FK14: 8 | FL14: 8 | FM14: 20 | FQ14: =FL14+FK14+FJ14 -> 20 | FR14: تمهيد | FT14: تمهيد | FU14: الحاسب | FV14: تمهيد | FW14: اللغات | FX14: عدد مرات | FZ14: عدد | GA14: عدد | GB14: عدد
N15: 10 | O15: 5 | P15: 25 | T15: 25 | U15: كود | V15: عربى * | X15: 8 | Y15: 5 | Z15: 15 | AD15: 20 | AE15: كود | AF15: انجليزى* | AH15: 3.6 | AI15: 3 | AJ15: 9 | AN15: 9 | AO15: كود | AP15: فرنساوى* | AQ15: 0 | AR15: كود | AS15: لغات* | AU15: 6.4 | AV15: 4 | AW15: 16 | BA15: 16 | BB15: كود | BC15: جغرافيا* | BE15: 6 | BF15: 3 | BG15: 15 | BK15: 15 | BL15: كود | BM15: رياضة* | BO15: 10 | BP15: 5 | BQ15: 25 | BU15: 25 | BV15: كود | BW15: إقتصاد* | BY15: 10 | BZ15: 5 | CA15: 25 | CE15: 25 | CF15: كود | CG15: محاسبة* | CI15: 10 | CJ15: 5 | CK15: 25 | CO15: 25 | CP15: كود | CQ15: سكرتارية عربى * | CS15: 8 | CT15: 5 | CU15: 25 | CY15: 20 | CZ15: كود | DA15: سكرتارية انجليزي* | DC15: 10 | DD15: 5 | DE15: 25 | DI15: 25 | DJ15: كود | DK15: تسويق* | DM15: 10 | DN15: 5 | DO15: 25 | DS15: 25 | DT15: كود | DU15: قانون تجاري* | DW15: 10 | DX15: 5 | DY15: 25 | EC15: 25 | ED15: كود | EE15: مبادئ إدارة الاعمال * | EF15: 0 | EG15: 4 | EH15: 2 | EI15: 10 | EK15: 0 | EL15: 6 | EM15: 3 | EN15: 15 | ET15: 25 | EU15: كود | EX15: 4 | EY15: 2 | EZ15: 10 | FD15: 10 | FE15: كود | FF15: تربية وطنية * | FG15: =FG14/2 -> 310 | FH15: كود | FI15: كلى* | FK15: 4 | FL15: 2 | FM15: 10 | FQ15: 10 | FR15: كود | FS15: دين | FT15: كودحاسب | FU15: عملي-تحريري | FV15: كودلغات | FW15: المواد | FX15: الرسوب | FZ15: الناجحون | GA15: الدور الثانى | GB15: الراسبون | GC15: مبروك النجاح | GD15: له دور ثانى في | GE15: راسب في * | GF15: الاسم | GG15: حالة الطالب
GG16: حالة الطالب
E17: =IF(I17="","",SUBTOTAL(3,I$17:I17)) -> 1 | F17: الشيت السابع عشر | G17: 1 | H17: 101 | I17: محمد1 | J17: لجنة رقم 1 | K17: 1/1 | L17: بنين | M17: 8.9 | N17: 3.75 | O17: 6 | P17: =O17+N17+M17 -> 18.65 | Q17: =P17-INT(P17) -> 0.65 | R17: =IF(Q17>=0.25,IF(Q17>=0.75,0,0.5-Q17),IF(Q17>=0.75,0,Q17*-1)) -> -0.15 | S17: =IF(Q17>=0.75,1-Q17,0) -> 0 | T17: =P17+R17+S17 -> 18.5 | U17: =IF(V17<>"",1,0) -> 1 | V17: =IF(OR(T17<T$15,O17<O$15),V$15,"") -> عربى * | W17: 9.3 | X17: 7 | Y17: 15.5 | Z17: =Y17+X17+W17 -> 31.8 | AA17: =Z17-INT(Z17) -> 0.8 | AB17: =IF(AA17>=0.25,IF(AA17>=0.75,0,0.5-AA17),IF(AA17>=0.75,0,AA17*-1)) -> 0 | AC17: =IF(AA17>=0.75,1-AA17,0) -> 0.2 | AD17: =Z17+AB17+AC17 -> 32 | AE17: =IF(AF17<>"",1,0) -> 0 | AF17: =IF(OR(AD17<AD$15,Y17<Y$15),AF$15,"") ->  | AG17: 5 | AH17: 2.4 | AI17: 6.8 | AJ17: =AI17+AH17+AG17 -> 14.2 | AK17: =AJ17-INT(AJ17) -> 0.2 | AL17: =IF(AK17>=0.25,IF(AK17>=0.75,0,0.5-AK17),IF(AK17>=0.75,0,AK17*-1)) -> -0.2 | AM17: =IF(AK17>=0.75,1-AK17,0) -> 0 | AN17: =AJ17+AL17+AM17 -> 14 | AO17: =IF(AP17<>"",1,0) -> 0 | AP17: =IF(OR(AN17<AN$15,AI17<AI$15),AP$15,"") ->  | AQ17: =AN17+AD17 -> 46 | AR17: =IF(AS17<>"",1,0) -> 0 | AS17: =IF(AQ17<AQ$15,AS$15,"") ->  | AT17: 7.2 | AU17: 10 | AV17: 15.5 | AW17: =AV17+AU17+AT17 -> 32.7 | AX17: =AW17-INT(AW17) -> 0.7 | AY17: =IF(AX17>=0.25,IF(AX17>=0.75,0,0.5-AX17),IF(AX17>=0.75,0,AX17*-1)) -> -0.2 | AZ17: =IF(AX17>=0.75,1-AX17,0) -> 0 | BA17: =AW17+AY17+AZ17 -> 32.5 | BB17: =IF(BC17<>"",1,0) -> 0 | BC17: =IF(OR(BA17<BA$15,AV17<AV$15),BC$15,"") ->  | BD17: 6 | BE17: 1.5 | BF17: 12 | BG17: =BF17+BE17+BD17 -> 19.5 | BH17: =BG17-INT(BG17) -> 0.5 | BI17: =IF(BH17>=0.25,IF(BH17>=0.75,0,0.5-BH17),IF(BH17>=0.75,0,BH17*-1)) -> 0 | BJ17: =IF(BH17>=0.75,1-BH17,0) -> 0 | BK17: =BG17+BI17+BJ17 -> 19.5 | BL17: =IF(BM17<>"",1,0) -> 0 | BM17: =IF(OR(BK17<BK$15,BF17<BF$15),BM$15,"") ->  | BN17: 9.5 | BO17: 1 | BP17: 14.5 | BQ17: =BP17+BO17+BN17 -> 25 | BR17: =BQ17-INT(BQ17) -> 0 | BS17: =IF(BR17>=0.25,IF(BR17>=0.75,0,0.5-BR17),IF(BR17>=0.75,0,BR17*-1)) -> 0 | BT17: =IF(BR17>=0.75,1-BR17,0) -> 0 | BU17: =BQ17+BS17+BT17 -> 25 | BV17: =IF(BW17<>"",1,0) -> 0 | BW17: =IF(OR(BU17<BU$15,BP17<BP$15),BW$15,"") ->  | BX17: 9.4 | BY17: 5 | BZ17: 15.5 | CA17: =BZ17+BY17+BX17 -> 29.9 | CB17: =CA17-INT(CA17) -> 0.9 | CC17: =IF(CB17>=0.25,IF(CB17>=0.75,0,0.5-CB17),IF(CB17>=0.75,0,CB17*-1)) -> 0 | CD17: =IF(CB17>=0.75,1-CB17,0) -> 0.1 | CE17: =CA17+CC17+CD17 -> 30 | CF17: =IF(CG17<>"",1,0) -> 0 | CG17: =IF(OR(CE17<CE$15,BZ17<BZ$15),CG$15,"") ->  | CH17: 8.7 | CI17: 11.5 | CJ17: 16.5 | CK17: =CJ17+CI17+CH17 -> 36.7 | CL17: =CK17-INT(CK17) -> 0.7 | CM17: =IF(CL17>=0.25,IF(CL17>=0.75,0,0.5-CL17),IF(CL17>=0.75,0,CL17*-1)) -> -0.2 | CN17: =IF(CL17>=0.75,1-CL17,0) -> 0 | CO17: =CK17+CM17+CN17 -> 36.5 | CP17: =IF(CQ17<>"",1,0) -> 0 | CQ17: =IF(OR(CO17<CO$15,CJ17<CJ$15),CQ$15,"") ->  | CR17: 9.4 | CS17: 8.5 | CT17: 14.5 | CU17: =CT17+CS17+CR17 -> 32.4 | CV17: =CU17-INT(CU17) -> 0.4 | CW17: =IF(CV17>=0.25,IF(CV17>=0.75,0,0.5-CV17),IF(CV17>=0.75,0,CV17*-1)) -> 0.1 | CX17: =IF(CV17>=0.75,1-CV17,0) -> 0 | CY17: =CU17+CW17+CX17 -> 32.5 | CZ17: =IF(DA17<>"",1,0) -> 0 | DA17: =IF(OR(CY17<CY$15,CT17<CT$15),DA$15,"") ->  | DB17: 8.9 | DC17: 12.5 | DD17: 9.5 | DE17: =DD17+DC17+DB17 -> 30.9 | DF17: =DE17-INT(DE17) -> 0.9 | DG17: =IF(DF17>=0.25,IF(DF17>=0.75,0,0.5-DF17),IF(DF17>=0.75,0,DF17*-1)) -> 0 | DH17: =IF(DF17>=0.75,1-DF17,0) -> 0.1 | DI17: =DE17+DG17+DH17 -> 31 | DJ17: =IF(DK17<>"",1,0) -> 0 | DK17: =IF(OR(DI17<DI$15,DD17<DD$15),DK$15,"") ->  | DL17: 8.4 | DM17: 7 | DN17: 19.5 | DO17: =DN17+DM17+DL17 -> 34.9 | DP17: =DO17-INT(DO17) -> 0.9 | DQ17: =IF(DP17>=0.25,IF(DP17>=0.75,0,0.5-DP17),IF(DP17>=0.75,0,DP17*-1)) -> 0 | DR17: =IF(DP17>=0.75,1-DP17,0) -> 0.1 | DS17: =DO17+DQ17+DR17 -> 35 | DT17: =IF(DU17<>"",1,0) -> 0 | DU17: =IF(OR(DS17<DS$15,DN17<DN$15),DU$15,"") ->  | DV17: 6.7 | DW17: 10 | DX17: 18 | DY17: =DX17+DW17+DV17 -> 34.7 | DZ17: =DY17-INT(DY17) -> 0.7 | EA17: =IF(DZ17>=0.25,IF(DZ17>=0.75,0,0.5-DZ17),IF(DZ17>=0.75,0,DZ17*-1)) -> -0.2 | EB17: =IF(DZ17>=0.75,1-DZ17,0) -> 0 | EC17: =DY17+EA17+EB17 -> 34.5 | ED17: =IF(EE17<>"",1,0) -> 0 | EE17: =IF(OR(EC17<EC$15,DX17<DX$15),EE$15,"") ->  | EF17: 3.8 | EG17: 8 | EH17: 8 | EI17: =SUM(EF17:EH17) -> 19.8 | EJ17: =IF(OR(EI17<EI$15,EH17<EH$15,),EJ$14,"") ->  | EK17: 5.9 | EL17: 5.5 | EM17: 10.5 | EN17: =SUM(EK17:EM17) -> 21.9 | EO17: =IF(OR(EN17<EN$15,EM17<EM$15),EO$14,"") ->  | EP17: =EN17+EI17 -> 41.7 | EQ17: =EP17-INT(EP17) -> 0.7 | ER17: =IF(EQ17>=0.25,IF(EQ17>=0.75,0,0.5-EQ17),IF(EQ17>=0.75,0,EQ17*-1)) -> -0.2 | ES17: =IF(EQ17>=0.75,1-EQ17,0) -> 0 | ET17: =EP17+ER17+ES17 -> 41.5 | EU17: =IF(EV17<>"",1,0) -> 0 | EV17: =IF(ET17<ET$15,EV$13,"") ->  | EW17: 3.9 | EX17: 7 | EY17: 8 | EZ17: =EY17+EX17+EW17 -> 18.9 | FA17: =EZ17-INT(EZ17) -> 0.9 | FB17: =IF(FA17>=0.25,IF(FA17>=0.75,0,0.5-FA17),IF(FA17>=0.75,0,FA17*-1)) -> 0 | FC17: =IF(FA17>=0.75,1-FA17,0) -> 0.1 | FD17: =EZ17+FB17+FC17 -> 19 | FE17: =IF(FF17<>"",1,0) -> 0 | FF17: =IF(OR(FD17<FD$15,EY17<EY$15),FF$15,"") ->  | FG17: =T17+AQ17+BA17+BK17+BU17+CE17+CO17+CY17+DI17+DS17+EC17+ET17+FD17 -> 401.5 | FH17: =IF(FI17<>"",1,0) -> 0 | FI17: =IF(FG17<FG$15,FI$15,"") ->  | FJ17: 3.9 | FK17: 1.75 | FL17: 6 | FM17: =FL17+FK17+FJ17 -> 11.65 | FN17: =FM17-INT(FM17) -> 0.65 | FO17: =IF(FN17>=0.25,IF(FN17>=0.75,0,0.5-FN17),IF(FN17>=0.75,0,FN17*-1)) -> -0.15 | FP17: =IF(FN17>=0.75,1-FN17,0) -> 0 | FQ17: =FM17+FO17+FP17 -> 11.5 | FR17: =IF(FS17<>"",1,0) -> 0 | FS17: =IF(OR(FQ17<FQ$15,FL17<FL$15),FS$15,"") ->  | FT17: =IF(OR(OR(EJ17="حاسب عملي*",EV17="مجـ حاسب*"),AND(EO17="حاسب تحريري*")),1,"0") -> 0 | FU17: =IF(FT17=1,EJ17&" "&EO17&" "&EV17,"") ->  | FV17: =IF(OR(OR(AF17="انجليزى*",AS17="لغات*"),AND(AP17="فرنساوى*")),1,"0") -> 0 | FW17: =IF(FV17=1,AF17&" "&AP17&" "&AS17,"") ->  | FX17: =U17+BB17+BL17+BV17+CF17+CP17+CZ17+DJ17+DT17+ED17+FE17+FT17+FV17 -> 1 | FZ17: =IF(GC17="",0,1) -> 0 | GA17: =IF(GD17="",0,1) -> 1 | GB17: =IF(GE17="",0,1) -> 0 | GC17: =IF(AND(FX17+FV17+FT17<1,FS17&FI17=""),$GC$15,"") ->  | GD17: =IF(OR(OR(FX17+FV17+FT17=1,FX17+FV17+FT17=2),AND(FX17+FV17+FT17=0,FI17&FS17<>"")),$GD$15&""&FW17&""&FU17&""&V17&" "&BC17&" "&BM17&""&BW17&""&CG17&""&CQ17&""&DA17&""&DU17&""&DK17&""&EE17&""&FF17&""&""&FI17&""&FS17,"") -> له دور ثانى فيعربى * | GE17: =IF(FX17+FV17+FT17>2,$GE$15&""&V17&""&FW17&""&FU17&" "&BC17&" "&BM17&" "&BW17&" "&CG17&" "&CQ17&" "&DA17&" "&DK17&" "&DU17&" "&EE17&" "&FF17&" "&FI17&" "&FS17,"") ->  | GF17: =IF(FZ17=1,$GC$15,IF(GA17=1,$GD$15,IF(GB17=1,$GE$15))) -> له دور ثانى في | GG17: له دور ثانى في عربى *
E18: =IF(I18="","",SUBTOTAL(3,I$17:I18)) -> 2 | F18: الشيت السابع عشر | G18: 2 | H18: 102 | I18: محمد2 | J18: لجنة رقم 1 | K18: 2/1 | L18: بنين | M18: 9.2 | N18: 12.25 | O18: 13.5 | P18: =O18+N18+M18 -> 34.95 | Q18: =P18-INT(P18) -> 0.95 | R18: =IF(Q18>=0.25,IF(Q18>=0.75,0,0.5-Q18),IF(Q18>=0.75,0,Q18*-1)) -> 0 | S18: =IF(Q18>=0.75,1-Q18,0) -> 0.05 | T18: =P18+R18+S18 -> 35 | U18: =IF(V18<>"",1,0) -> 0 | V18: =IF(OR(T18<T$15,O18<O$15),V$15,"") ->  | W18: 9.7 | X18: 13.6 | Y18: 17 | Z18: =Y18+X18+W18 -> 40.3 | AA18: =Z18-INT(Z18) -> 0.3 | AB18: =IF(AA18>=0.25,IF(AA18>=0.75,0,0.5-AA18),IF(AA18>=0.75,0,AA18*-1)) -> 0.2 | AC18: =IF(AA18>=0.75,1-AA18,0) -> 0 | AD18: =Z18+AB18+AC18 -> 40.5 | AE18: =IF(AF18<>"",1,0) -> 0 | AF18: =IF(OR(AD18<AD$15,Y18<Y$15),AF$15,"") ->  | AG18: 4.5 | AH18: 3.2 | AI18: 11.6 | AJ18: =AI18+AH18+AG18 -> 19.3 | AK18: =AJ18-INT(AJ18) -> 0.3 | AL18: =IF(AK18>=0.25,IF(AK18>=0.75,0,0.5-AK18),IF(AK18>=0.75,0,AK18*-1)) -> 0.2 | AM18: =IF(AK18>=0.75,1-AK18,0) -> 0 | AN18: =AJ18+AL18+AM18 -> 19.5 | AO18: =IF(AP18<>"",1,0) -> 0 | AP18: =IF(OR(AN18<AN$15,AI18<AI$15),AP$15,"") ->  | AQ18: =AN18+AD18 -> 60 | AR18: =IF(AS18<>"",1,0) -> 0 | AS18: =IF(AQ18<AQ$15,AS$15,"") ->  | AT18: 6.8 | AU18: 15.5 | AV18: 16 | AW18: =AV18+AU18+AT18 -> 38.3 | AX18: =AW18-INT(AW18) -> 0.3 | AY18: =IF(AX18>=0.25,IF(AX18>=0.75,0,0.5-AX18),IF(AX18>=0.75,0,AX18*-1)) -> 0.2 | AZ18: =IF(AX18>=0.75,1-AX18,0) -> 0 | BA18: =AW18+AY18+AZ18 -> 38.5 | BB18: =IF(BC18<>"",1,0) -> 0 | BC18: =IF(OR(BA18<BA$15,AV18<AV$15),BC$15,"") ->  | BD18: 6 | BE18: 9.25 | BF18: 12 | BG18: =BF18+BE18+BD18 -> 27.25 | BH18: =BG18-INT(BG18) -> 0.25 | BI18: =IF(BH18>=0.25,IF(BH18>=0.75,0,0.5-BH18),IF(BH18>=0.75,0,BH18*-1)) -> 0.25 | BJ18: =IF(BH18>=0.75,1-BH18,0) -> 0 | BK18: =BG18+BI18+BJ18 -> 27.5 | BL18: =IF(BM18<>"",1,0) -> 0 | BM18: =IF(OR(BK18<BK$15,BF18<BF$15),BM$15,"") ->  | BN18: 9.7 | BO18: 14.5 | BP18: 19 | BQ18: =BP18+BO18+BN18 -> 43.2 | BR18: =BQ18-INT(BQ18) -> 0.2 | BS18: =IF(BR18>=0.25,IF(BR18>=0.75,0,0.5-BR18),IF(BR18>=0.75,0,BR18*-1)) -> -0.2 | BT18: =IF(BR18>=0.75,1-BR18,0) -> 0 | BU18: =BQ18+BS18+BT18 -> 43 | BV18: =IF(BW18<>"",1,0) -> 0 | BW18: =IF(OR(BU18<BU$15,BP18<BP$15),BW$15,"") ->  | BX18: 9.9 | BY18: 12 | BZ18: 18 | CA18: =BZ18+BY18+BX18 -> 39.9 | CB18: =CA18-INT(CA18) -> 0.9 | CC18: =IF(CB18>=0.25,IF(CB18>=0.75,0,0.5-CB18),IF(CB18>=0.75,0,CB18*-1)) -> 0 | CD18: =IF(CB18>=0.75,1-CB18,0) -> 0.1 | CE18: =CA18+CC18+CD18 -> 40 | CF18: =IF(CG18<>"",1,0) -> 0 | CG18: =IF(OR(CE18<CE$15,BZ18<BZ$15),CG$15,"") ->  | CH18: 7 | CI18: 13.5 | CJ18: 18.5 | CK18: =CJ18+CI18+CH18 -> 39 | CL18: =CK18-INT(CK18) -> 0 | CM18: =IF(CL18>=0.25,IF(CL18>=0.75,0,0.5-CL18),IF(CL18>=0.75,0,CL18*-1)) -> 0 | CN18: =IF(CL18>=0.75,1-CL18,0) -> 0 | CO18: =CK18+CM18+CN18 -> 39 | CP18: =IF(CQ18<>"",1,0) -> 0 | CQ18: =IF(OR(CO18<CO$15,CJ18<CJ$15),CQ$15,"") ->  | CR18: 9.6 | CS18: 16.5 | CT18: 16.5 | CU18: =CT18+CS18+CR18 -> 42.6 | CV18: =CU18-INT(CU18) -> 0.6 | CW18: =IF(CV18>=0.25,IF(CV18>=0.75,0,0.5-CV18),IF(CV18>=0.75,0,CV18*-1)) -> -0.1 | CX18: =IF(CV18>=0.75,1-CV18,0) -> 0 | CY18: =CU18+CW18+CX18 -> 42.5 | CZ18: =IF(DA18<>"",1,0) -> 0 | DA18: =IF(OR(CY18<CY$15,CT18<CT$15),DA$15,"") ->  | DB18: 9.3 | DC18: 18.5 | DD18: 13.5 | DE18: =DD18+DC18+DB18 -> 41.3 | DF18: =DE18-INT(DE18) -> 0.3 | DG18: =IF(DF18>=0.25,IF(DF18>=0.75,0,0.5-DF18),IF(DF18>=0.75,0,DF18*-1)) -> 0.2 | DH18: =IF(DF18>=0.75,1-DF18,0) -> 0 | DI18: =DE18+DG18+DH18 -> 41.5 | DJ18: =IF(DK18<>"",1,0) -> 0 | DK18: =IF(OR(DI18<DI$15,DD18<DD$15),DK$15,"") ->  | DL18: 9.6 | DM18: 11 | DN18: 20 | DO18: =DN18+DM18+DL18 -> 40.6 | DP18: =DO18-INT(DO18) -> 0.6 | DQ18: =IF(DP18>=0.25,IF(DP18>=0.75,0,0.5-DP18),IF(DP18>=0.75,0,DP18*-1)) -> -0.1 | DR18: =IF(DP18>=0.75,1-DP18,0) -> 0 | DS18: =DO18+DQ18+DR18 -> 40.5 | DT18: =IF(DU18<>"",1,0) -> 0 | DU18: =IF(OR(DS18<DS$15,DN18<DN$15),DU$15,"") ->  | DV18: 9.6 | DW18: 14 | DX18: 16.5 | DY18: =DX18+DW18+DV18 -> 40.1 | DZ18: =DY18-INT(DY18) -> 0.1 | EA18: =IF(DZ18>=0.25,IF(DZ18>=0.75,0,0.5-DZ18),IF(DZ18>=0.75,0,DZ18*-1)) -> -0.1 | EB18: =IF(DZ18>=0.75,1-DZ18,0) -> 0 | EC18: =DY18+EA18+EB18 -> 40 | ED18: =IF(EE18<>"",1,0) -> 0 | EE18: =IF(OR(EC18<EC$15,DX18<DX$15),EE$15,"") ->  | EF18: 4 | EG18: 7 | EH18: 7.5 | EI18: =SUM(EF18:EH18) -> 18.5 | EJ18: =IF(OR(EI18<EI$15,EH18<EH$15,),EJ$14,"") ->  | EK18: 5.9 | EL18: 8 | EM18: 10 | EN18: =SUM(EK18:EM18) -> 23.9 | EP18: =EN18+EI18 -> 42.4 | EQ18: =EP18-INT(EP18) -> 0.4 | ER18: =IF(EQ18>=0.25,IF(EQ18>=0.75,0,0.5-EQ18),IF(EQ18>=0.75,0,EQ18*-1)) -> 0.1 | ES18: =IF(EQ18>=0.75,1-EQ18,0) -> 0 | ET18: =EP18+ER18+ES18 -> 42.5 | EU18: =IF(EV18<>"",1,0) -> 0 | EV18: =IF(ET18<ET$15,EV$13,"") ->  | EW18: 3.9 | EX18: 7 | EY18: 8 | EZ18: =EY18+EX18+EW18 -> 18.9 | FA18: =EZ18-INT(EZ18) -> 0.9 | FB18: =IF(FA18>=0.25,IF(FA18>=0.75,0,0.5-FA18),IF(FA18>=0.75,0,FA18*-1)) -> 0 | FC18: =IF(FA18>=0.75,1-FA18,0) -> 0.1 | FD18: =EZ18+FB18+FC18 -> 19 | FE18: =IF(FF18<>"",1,0) -> 0 | FF18: =IF(OR(FD18<FD$15,EY18<EY$15),FF$15,"") ->  | FG18: =T18+AQ18+BA18+BK18+BU18+CE18+CO18+CY18+DI18+DS18+EC18+ET18+FD18 -> 509 | FH18: =IF(FI18<>"",1,0) -> 0 | FI18: =IF(FG18<FG$15,FI$15,"") ->  | FJ18: 3.5 | FK18: 3.5 | FL18: 6.75 | FM18: =FL18+FK18+FJ18 -> 13.75 | FN18: =FM18-INT(FM18) -> 0.75 | FO18: =IF(FN18>=0.25,IF(FN18>=0.75,0,0.5-FN18),IF(FN18>=0.75,0,FN18*-1)) -> 0 | FP18: =IF(FN18>=0.75,1-FN18,0) -> 0.25 | FQ18: =FM18+FO18+FP18 -> 14 | FR18: =IF(FS18<>"",1,0) -> 0 | FS18: =IF(OR(FQ18<FQ$15,FL18<FL$15),FS$15,"") ->  | FT18: =IF(OR(OR(EJ18="حاسب عملي*",EV18="مجـ حاسب*"),AND(EO18="حاسب تحريري*")),1,"0") -> 0 | FU18: =IF(FT18=1,EJ18&" "&EO18&" "&EV18,"") ->  | FV18: =IF(OR(OR(AF18="انجليزى*",AS18="لغات*"),AND(AP18="فرنساوى*")),1,"0") -> 0 | FW18: =IF(FV18=1,AF18&" "&AP18&" "&AS18,"") ->  | FX18: =U18+BB18+BL18+BV18+CF18+CP18+CZ18+DJ18+DT18+ED18+FE18+FT18+FV18 -> 0 | FZ18: =IF(GC18="",0,1) -> 1 | GA18: 0 | GB18: 0 | GC18: =IF(AND(FX18+FV18+FT18<1,FS18&FI18=""),$GC$15,"") -> مبروك النجاح | GD18: =IF(OR(OR(FX18+FV18+FT18=1,FX18+FV18+FT18=2),AND(FX18+FV18+FT18=0,FI18&FS18<>"")),$GD$15&FW18&""&FU18&""&V18&" "&BC18&" "&BM18&""&BW18&""&CG18&""&CQ18&""&DA18&""&DU18&""&DK18&""&EE18&""&FF18&""&""&FI18&""&FS18,"") ->  | GE18: =IF(FX18+FV18+FT18>2,$GE$15&""&V18&""&FW18&""&FU18&" "&BC18&" "&BM18&" "&BW18&" "&CG18&" "&CQ18&" "&DA18&" "&DK18&" "&DU18&" "&EE18&" "&FF18&" "&FI18&" "&FS18,"") ->  | GF18: =IF(FZ18=1,$GC$15,IF(GA18=1,$GD$15,IF(GB18=1,$GE$15))) -> مبروك النجاح | GG18: =IF(FZ18=1,$GC18,IF(GA18=1,$GD18,IF(GB18=1,$GE18))) -> مبروك النجاح
E19: =IF(I19="","",SUBTOTAL(3,I$17:I19)) -> 3 | F19: الشيت السابع عشر | G19: 3 | H19: 103 | I19: محمد3 | J19: لجنة رقم 1 | K19: 3/1 | L19: بنين | M19: 9.6 | N19: 11.5 | O19: 13.25 | P19: 34.35 | Q19: 0.35 | R19: 0.15 | S19: 0 | T19: 34.5 | U19: 0 | W19: 6.8 | X19: 8 | Y19: 12 | Z19: 26.8 | AA19: 0.8 | AB19: 0 | AC19: 0.2 | AD19: 27 | AE19: 0 | AG19: 4.1 | AH19: 3.2 | AI19: 8.8 | AJ19: 16.1 | AK19: 0.1 | AL19: -0.1 | AM19: 0 | AN19: 16 | AO19: 0 | AQ19: 43 | AR19: 0 | AT19: 7.5 | AU19: 10.5 | AV19: 16 | AW19: 34 | AX19: 0 | AY19: 0 | AZ19: 0 | BA19: 34 | BB19: 0 | BD19: 6 | BE19: 10.5 | BF19: 12 | BG19: 28.5 | BH19: 0.5 | BI19: 0 | BJ19: 0 | BK19: 28.5 | BL19: 0 | BN19: 8.5 | BO19: 2 | BP19: 14.5 | BQ19: 25 | BR19: 0 | BS19: 0 | BT19: 0 | BU19: 25 | BV19: 0 | BX19: 9.6 | BY19: 8.5 | BZ19: 13 | CA19: 31.1 | CB19: 0.1 | CC19: -0.1 | CD19: 0 | CE19: 31 | CF19: 0 | CH19: 8.2 | CI19: 11.5 | CJ19: 19.5 | CK19: 39.2 | CL19: 0.2 | CM19: -0.2 | CN19: 0 | CO19: 39 | CP19: 0 | CR19: 9.8 | CS19: 15.5 | CT19: 15.5 | CU19: 40.8 | CV19: 0.8 | CW19: 0 | CX19: 0.2 | CY19: 41 | CZ19: 0 | DB19: 8.4 | DC19: 9 | DD19: 14 | DE19: 31.4 | DF19: 0.4 | DG19: 0.1 | DH19: 0 | DI19: 31.5 | DJ19: 0 | DL19: 8.8 | DM19: 7.5 | DN19: 19.5 | DO19: 35.8 | DP19: 0.8 | DQ19: 0 | DR19: 0.2 | DS19: 36 | DT19: 0 | DV19: 9 | DW19: 10.5 | DX19: 15.5 | DY19: 35 | DZ19: 0 | EA19: 0 | EB19: 0 | EC19: 35 | ED19: 0 | EF19: 3.9 | EG19: 8 | EH19: 8 | EI19: 19.9 | EK19: 6 | EL19: 8 | EM19: 11 | EN19: 25 | EP19: 44.9 | EQ19: 0.9 | ER19: 0 | ES19: 0.1 | ET19: 45 | EU19: 0 | EW19: 4 | EX19: 7 | EY19: 7 | EZ19: 18 | FA19: 0 | FB19: 0 | FC19: 0 | FD19: 18 | FE19: 0 | FG19: 441.5 | FH19: 0 | FJ19: 3 | FK19: 3.5 | FL19: 6.5 | FM19: 13 | FN19: 0 | FO19: 0 | FP19: 0 | FQ19: 13 | FR19: 0 | FT19: 0 | FV19: 0 | FX19: 0 | FZ19: 1 | GA19: 0 | GB19: 0 | GC19: مبروك النجاح | GF19: مبروك النجاح | GG19: مبروك النجاح
E20: =IF(I20="","",SUBTOTAL(3,I$17:I20)) -> 4 | F20: الشيت السابع عشر | G20: 4 | H20: 104 | I20: محمد4 | J20: لجنة رقم 1 | K20: 4/1 | L20: بنين | M20: 9 | N20: 11.5 | O20: 15.25 | P20: 35.75 | Q20: 0.75 | R20: 0 | S20: 0.25 | T20: 36 | U20: 0 | W20: 7 | X20: 8.1 | Y20: 13.6 | Z20: 28.7 | AA20: 0.7 | AB20: -0.2 | AC20: 0 | AD20: 28.5 | AE20: 0 | AG20: 4 | AH20: 2.8 | AI20: 6.8 | AJ20: 13.6 | AK20: 0.6 | AL20: -0.1 | AM20: 0 | AN20: 13.5 | AO20: 0 | AQ20: 42 | AR20: 0 | AT20: 7.1 | AU20: 8 | AV20: 14 | AW20: 29.1 | AX20: 0.1 | AY20: -0.1 | AZ20: 0 | BA20: 29 | BB20: 0 | BD20: 5 | BE20: 2 | BF20: 12 | BG20: 19 | BH20: 0 | BI20: 0 | BJ20: 0 | BK20: 19 | BL20: 0 | BN20: 9.4 | BO20: 5 | BP20: 14 | BQ20: 28.4 | BR20: 0.4 | BS20: 0.1 | BT20: 0 | BU20: 28.5 | BV20: 0 | BX20: 9.9 | BY20: 3.5 | BZ20: 11.5 | CA20: 24.9 | CB20: 0.9 | CC20: 0 | CD20: 0.1 | CE20: 25 | CF20: 0 | CH20: 9.6 | CI20: 11.5 | CJ20: 17 | CK20: 38.1 | CL20: 0.1 | CM20: -0.1 | CN20: 0 | CO20: 38 | CP20: 0 | CR20: 9.3 | CS20: 11 | CT20: 11.5 | CU20: 31.8 | CV20: 0.8 | CW20: 0 | CX20: 0.2 | CY20: 32 | CZ20: 0 | DB20: 9.7 | DC20: 7.5 | DD20: 12 | DE20: 29.2 | DF20: 0.2 | DG20: -0.2 | DH20: 0 | DI20: 29 | DJ20: 0 | DL20: 8.3 | DM20: 7.5 | DN20: 19.5 | DO20: 35.3 | DP20: 0.3 | DQ20: 0.2 | DR20: 0 | DS20: 35.5 | DT20: 0 | DV20: 7.1 | DW20: 10.5 | DX20: 20 | DY20: 37.6 | DZ20: 0.6 | EA20: -0.1 | EB20: 0 | EC20: 37.5 | ED20: 0 | EF20: 4.16 | EG20: 4 | EH20: 2.5 | EI20: 10.66 | EK20: 2.16 | EL20: 6.5 | EM20: 11 | EN20: 19.66 | EP20: 30.32 | EQ20: 0.32 | ER20: 0.18 | ES20: 0 | ET20: 30.5 | EU20: 0 | EW20: 3.9 | EX20: 7 | EY20: 8 | EZ20: 18.9 | FA20: 0.9 | FB20: 0 | FC20: 0.1 | FD20: 19 | FE20: 0 | FG20: 401 | FH20: 0 | FJ20: 3.2 | FK20: 4.25 | FL20: 7 | FM20: 14.45 | FN20: 0.45 | FO20: 0.05 | FP20: 0 | FQ20: 14.5 | FR20: 0 | FT20: 0 | FV20: 0 | FX20: 0 | FZ20: 1 | GA20: 0 | GB20: 0 | GC20: مبروك النجاح | GF20: مبروك النجاح | GG20: مبروك النجاح
E21: =IF(I21="","",SUBTOTAL(3,I$17:I21)) -> 5 | F21: الشيت السابع عشر | G21: 5 | H21: 105 | I21: محمد5 | J21: لجنة رقم 1 | K21: 1/1 | L21: بنين | M21: 8.5 | N21: 10.25 | O21: 13 | P21: 31.75 | Q21: 66 | R21: 0 | S21: -65 | T21: -33.25 | U21: 1 | V21: عربى * | W21: 8 | X21: 6.1 | Y21: 12.1 | Z21: 26.2 | AA21: 88 | AB21: 0 | AC21: -87 | AD21: -60.8 | AE21: 1 | AF21: انجليزى* | AG21: 3.7 | AH21: 2.4 | AI21: 7.6 | AJ21: 13.7 | AK21: 0.7 | AL21: -0.2 | AM21: 0 | AN21: 0 | AO21: 1 | AP21: فرنساوى* | AQ21: -60.8 | AR21: 1 | AS21: لغات* | AT21: 7.4 | AU21: 7 | AV21: 14.5 | AW21: 28.9 | AX21: 88 | AY21: 0 | AZ21: -87 | BA21: -58.1 | BB21: 1 | BC21: جغرافيا* | BD21: 6 | BE21: 2.5 | BF21: 12 | BG21: 20.5 | BI21: 0 | BJ21: 0 | BK21: 20.5 | BL21: 0 | BN21: 9 | BO21: 5 | BP21: 11.5 | BQ21: 25.5 | BR21: 99 | BS21: 0 | BT21: -98 | BU21: -72.5 | BV21: 1 | BW21: إقتصاد* | BX21: 8.6 | BY21: 5.5 | BZ21: 17.5 | CA21: 31.6 | CC21: 0 | CD21: 0 | CE21: 31.6 | CF21: 0 | CH21: 8.8 | CI21: 8.5 | CJ21: 17 | CK21: 34.3 | CM21: 0 | CN21: 0 | CO21: 34.3 | CP21: 0 | CR21: 8.8 | CS21: 8.5 | CT21: 13.5 | CU21: 30.8 | CW21: 0 | CX21: 0 | CY21: 30.8 | CZ21: 0 | DB21: 8.4 | DC21: 8 | DD21: 10.5 | DE21: 26.9 | DG21: 0 | DH21: 0 | DI21: 26.9 | DJ21: 0 | DL21: 8.6 | DM21: 9 | DN21: 19.5 | DO21: 37.1 | DQ21: 0 | DR21: 0 | DS21: 37.1 | DT21: 0 | DV21: 9.8 | DW21: 10 | DX21: 19 | DY21: 38.8 | EA21: 0 | EB21: 0 | EC21: 38.8 | ED21: 0 | EF21: 3.6 | EG21: 5.5 | EH21: 6 | EI21: 15.1 | EK21: 3.6 | EL21: 7 | EM21: 11 | EN21: 21.6 | EP21: 36.7 | ER21: 0 | ES21: 0 | ET21: 36.7 | EU21: 0 | EW21: 3.5 | EX21: 6 | EY21: 7 | EZ21: 16.5 | FA21: 0.5 | FB21: 0 | FC21: 0 | FD21: 16.5 | FE21: 0 | FG21: 48.55 | FH21: 1 | FI21: كلى* | FJ21: 3.5 | FK21: 4.5 | FL21: 6 | FM21: 14 | FN21: 0 | FO21: 0 | FP21: 0 | FQ21: 14 | FR21: 0 | FT21: 0 | FV21: 1 | FW21: انجليزى* فرنساوى* لغات* | FX21: 4 | FZ21: 0 | GA21: 0 | GB21: 1 | GE21: راسب في *عربى *انجليزى* فرنساوى* لغات* جغرافيا* إقتصاد* كلى* | GF21: راسب في * | GG21: راسب في *عربى *انجليزى* فرنساوى* لغات* جغرافيا* إقتصاد* كلى*
E22: =IF(I22="","",SUBTOTAL(3,I$17:I22)) -> 6 | F22: الشيت السابع عشر | G22: 6 | H22: 106 | I22: محمد6 | J22: لجنة رقم 1 | K22: 6/1 | L22: بنين | M22: 7.1 | N22: 8.75 | O22: 11.75 | P22: 27.6 | Q22: 0.6 | R22: -0.1 | S22: 0 | T22: 27.5 | U22: 0 | W22: 9.1 | X22: 3 | Y22: 13 | Z22: 25.1 | AA22: 0.1 | AB22: -0.1 | AC22: 0 | AD22: 25 | AE22: 0 | AG22: 4 | AH22: 2.4 | AI22: 9.6 | AJ22: 16 | AK22: 0 | AL22: 0 | AM22: 0 | AN22: 16 | AO22: 0 | AQ22: 41 | AR22: 0 | AT22: 5.8 | AU22: 10 | AV22: 15 | AW22: 30.8 | AX22: 0.8 | AY22: 0 | AZ22: 0.2 | BA22: 31 | BB22: 0 | BD22: 5 | BE22: 2 | BF22: 11.5 | BG22: 18.5 | BH22: 0.5 | BI22: 0 | BJ22: 0 | BK22: 18.5 | BL22: 0 | BN22: 9.1 | BO22: 5.5 | BP22: 11 | BQ22: 25.6 | BR22: 0.6 | BS22: -0.1 | BT22: 0 | BU22: 25.5 | BV22: 0 | BX22: 9.3 | BY22: 0.5 | BZ22: 16.5 | CA22: 26.3 | CB22: 0.3 | CC22: 0.2 | CD22: 0 | CE22: 26.5 | CF22: 0 | CH22: 6.6 | CI22: 7.5 | CJ22: 15.5 | CK22: 29.6 | CL22: 0.6 | CM22: -0.1 | CN22: 0 | CO22: 29.5 | CP22: 0 | CR22: 9.5 | CS22: 6.5 | CT22: 12.5 | CU22: 28.5 | CV22: 0.5 | CW22: 0 | CX22: 0 | CY22: 28.5 | CZ22: 0 | DB22: 8.4 | DC22: 7 | DD22: 11 | DE22: 26.4 | DF22: 0.4 | DG22: 0.1 | DH22: 0 | DI22: 26.5 | DJ22: 0 | DL22: 9.2 | DM22: 4.5 | DN22: 19.5 | DO22: 33.2 | DP22: 0.2 | DQ22: -0.2 | DR22: 0 | DS22: 33 | DT22: 0 | DV22: 4.9 | DW22: 7 | DX22: 19 | DY22: 30.9 | DZ22: 0.9 | EA22: 0 | EB22: 0.1 | EC22: 31 | ED22: 0 | EF22: 3.4 | EG22: 6 | EH22: 6.5 | EI22: 15.9 | EK22: 5.8 | EL22: 6.5 | EM22: 10 | EN22: 22.3 | EP22: 38.2 | EQ22: 0.2 | ER22: -0.2 | ES22: 0 | ET22: 38 | EU22: 0 | EW22: 3.9 | EX22: 8 | EY22: 8 | EZ22: 19.9 | FA22: 0.9 | FB22: 0 | FC22: 0.1 | FD22: 20 | FE22: 0 | FG22: 376.5 | FH22: 0 | FJ22: 2.6 | FK22: 2.25 | FL22: 7 | FM22: 11.85 | FN22: 0.85 | FO22: 0 | FP22: 0.15 | FQ22: 12 | FR22: 0 | FT22: 0 | FV22: 0 | FX22: 0 | FZ22: 1 | GA22: 0 | GB22: 0 | GC22: مبروك النجاح | GF22: مبروك النجاح | GG22: مبروك النجاح
E23: =IF(I23="","",SUBTOTAL(3,I$17:I23)) -> 7 | F23: الشيت السابع عشر | G23: 7 | H23: 107 | I23: محمد7 | J23: لجنة رقم 1 | K23: 1/1 | L23: بنين | M23: 8.2 | N23: 5.5 | O23: 13.25 | P23: 26.95 | Q23: 0.95 | R23: 0 | S23: 0.05 | T23: 27 | U23: 0 | W23: 8.7 | X23: 6.1 | Y23: 17 | Z23: 31.8 | AA23: 0.8 | AB23: 0 | AC23: 0.2 | AD23: 32 | AE23: 0 | AG23: 4.4 | AH23: 3.2 | AI23: 10.4 | AJ23: 18 | AK23: 0 | AL23: 0 | AM23: 0 | AN23: 18 | AO23: 0 | AQ23: 50 | AR23: 0 | AT23: 6.6 | AU23: 4.5 | AV23: 14 | AW23: 25.1 | AX23: 0.1 | AY23: -0.1 | AZ23: 0 | BA23: 25 | BB23: 0 | BD23: 6 | BE23: 1 | BF23: 12 | BG23: 19 | BH23: 0 | BI23: 0 | BJ23: 0 | BK23: 19 | BL23: 0 | BN23: 9.7 | BO23: 1.5 | BP23: 14.5 | BQ23: 25.7 | BR23: 0.7 | BS23: -0.2 | BT23: 0 | BU23: 25.5 | BV23: 0 | BX23: 9.5 | BY23: 2.5 | BZ23: 13.5 | CA23: 25.5 | CB23: 0.5 | CC23: 0 | CD23: 0 | CE23: 25.5 | CF23: 0 | CH23: 8.4 | CI23: 6.5 | CJ23: 17 | CK23: 31.9 | CL23: 0.9 | CM23: 0 | CN23: 0.1 | CO23: 32 | CP23: 0 | CR23: 9.4 | CS23: 3.5 | CT23: 11.5 | CU23: 24.4 | CV23: 0.4 | CW23: 0.1 | CX23: 0 | CY23: 24.5 | CZ23: 0 | DB23: 8.4 | DC23: 8 | DD23: 13 | DE23: 29.4 | DF23: 0.4 | DG23: 0.1 | DH23: 0 | DI23: 29.5 | DJ23: 0 | DL23: 8.4 | DM23: 5 | DN23: 19.5 | DO23: 32.9 | DP23: 0.9 | DQ23: 0 | DR23: 0.1 | DS23: 33 | DT23: 0 | DV23: 6.9 | DW23: 6 | DX23: 17.5 | DY23: 30.4 | DZ23: 0.4 | EA23: 0.1 | EB23: 0 | EC23: 30.5 | ED23: 0 | EF23: 3.8 | EG23: 5 | EH23: 7.5 | EI23: 16.3 | EK23: 5.9 | EL23: 2.5 | EM23: 10 | EN23: 18.4 | EP23: 34.7 | EQ23: 0.7 | ER23: -0.2 | ES23: 0 | ET23: 34.5 | EU23: 0 | EW23: 3.6 | EX23: 6 | EY23: 8 | EZ23: 17.6 | FA23: 0.6 | FB23: -0.1 | FC23: 0 | FD23: 17.5 | FE23: 0 | FG23: 373.5 | FH23: 0 | FJ23: 3.5 | FK23: 1 | FL23: 7 | FM23: 11.5 | FN23: 0.5 | FO23: 0 | FP23: 0 | FQ23: 11.5 | FR23: 0 | FT23: 0 | FV23: 0 | FX23: 0 | FZ23: 1 | GA23: 0 | GB23: 0 | GC23: مبروك النجاح | GF23: مبروك النجاح | GG23: مبروك النجاح
E24: =IF(I24="","",SUBTOTAL(3,I$17:I24)) -> 8 | F24: الشيت السابع عشر | G24: 8 | H24: 108 | I24: محمد8 | J24: لجنة رقم 1 | K24: 2/1 | L24: بنين | M24: 9.8 | N24: 11.5 | O24: 14.75 | P24: 36.05 | Q24: 0.05 | R24: -0.05 | S24: 0 | T24: 36 | U24: 0 | W24: 7.6 | X24: 8.6 | Y24: 12 | Z24: 28.2 | AA24: 0.2 | AB24: -0.2 | AC24: 0 | AD24: 28 | AE24: 0 | AG24: 3.5 | AH24: 5.2 | AI24: 8.4 | AJ24: 17.1 | AK24: 0.1 | AL24: -0.1 | AM24: 0 | AN24: 17 | AO24: 0 | AQ24: 45 | AR24: 0 | AT24: 5 | AU24: 7 | AV24: 12 | AW24: 24 | AX24: 0 | AY24: 0 | AZ24: 0 | BA24: 24 | BB24: 0 | BD24: 6 | BE24: 7 | BF24: 12 | BG24: 25 | BH24: 0 | BI24: 0 | BJ24: 0 | BK24: 25 | BL24: 0 | BN24: 9.1 | BO24: 10 | BP24: 20 | BQ24: 39.1 | BR24: 0.1 | BS24: -0.1 | BT24: 0 | BU24: 39 | BV24: 0 | BX24: 9.6 | BY24: 10 | BZ24: 11 | CA24: 30.6 | CB24: 0.6 | CC24: -0.1 | CD24: 0 | CE24: 30.5 | CF24: 0 | CH24: 6.9 | CI24: 13 | CJ24: 16 | CK24: 35.9 | CL24: 0.9 | CM24: 0 | CN24: 0.1 | CO24: 36 | CP24: 0 | CR24: 9.8 | CS24: 17 | CT24: 14.5 | CU24: 41.3 | CV24: 0.3 | CW24: 0.2 | CX24: 0 | CY24: 41.5 | CZ24: 0 | DB24: 8.1 | DC24: 10 | DD24: 11 | DE24: 29.1 | DF24: 0.1 | DG24: -0.1 | DH24: 0 | DI24: 29 | DJ24: 0 | DL24: 8.6 | DM24: 10.5 | DN24: 19 | DO24: 38.1 | DP24: 0.1 | DQ24: -0.1 | DR24: 0 | DS24: 38 | DT24: 0 | DV24: 8.6 | DW24: 8 | DX24: 16.5 | DY24: 33.1 | DZ24: 0.1 | EA24: -0.1 | EB24: 0 | EC24: 33 | ED24: 0 | EF24: 3.16 | EG24: 8 | EH24: 7.5 | EI24: 18.66 | EK24: 5.6 | EL24: 8 | EM24: 10 | EN24: 23.6 | EP24: 42.26 | EQ24: 0.26 | ER24: 0.24 | ES24: 0 | ET24: 42.5 | EU24: 0 | EW24: 3.9 | EX24: 6 | EY24: 7 | EZ24: 16.9 | FA24: 0.9 | FB24: 0 | FC24: 0.1 | FD24: 17 | FE24: 0 | FG24: 436.5 | FH24: 0 | FJ24: 3 | FK24: 4.5 | FL24: 7 | FM24: 14.5 | FN24: 0.5 | FO24: 0 | FP24: 0 | FQ24: 14.5 | FR24: 0 | FT24: 0 | FV24: 0 | FX24: 0 | FZ24: 1 | GA24: 0 | GB24: 0 | GC24: مبروك النجاح | GF24: مبروك النجاح | GG24: مبروك النجاح
E25: =IF(I25="","",SUBTOTAL(3,I$17:I25)) -> 9 | F25: الشيت السابع عشر | G25: 9 | H25: 109 | I25: محمد9 | J25: لجنة رقم 1 | K25: 3/1 | L25: بنين | M25: 9.5 | N25: 9.5 | O25: 13 | P25: 32 | Q25: 0 | R25: 0 | S25: 0 | T25: 32 | U25: 0 | W25: 7.3 | X25: 6.6 | Y25: 10.5 | Z25: 24.4 | AA25: 0.4 | AB25: 0.1 | AC25: 0 | AD25: 24.5 | AE25: 0 | AG25: 3.9 | AH25: 5.2 | AI25: 7.6 | AJ25: 16.7 | AK25: 0.7 | AL25: -0.2 | AM25: 0 | AN25: 16.5 | AO25: 0 | AQ25: 41 | AR25: 0 | AT25: 7.8 | AU25: 5.5 | AV25: 12 | AW25: 25.3 | AX25: 0.3 | AY25: 0.2 | AZ25: 0 | BA25: 25.5 | BB25: 0 | BD25: 6 | BE25: 1 | BF25: 12 | BG25: 19 | BH25: 0 | BI25: 0 | BJ25: 0 | BK25: 19 | BL25: 0 | BN25: 8.6 | BO25: 8 | BP25: 20 | BQ25: 36.6 | BR25: 0.6 | BS25: -0.1 | BT25: 0 | BU25: 36.5 | BV25: 0 | BX25: 9.9 | BY25: 5 | BZ25: 10 | CA25: 24.9 | CB25: 0.9 | CC25: 0 | CD25: 0.1 | CE25: 25 | CF25: 0 | CH25: 8.7 | CI25: 10 | CJ25: 16.5 | CK25: 35.2 | CL25: 0.2 | CM25: -0.2 | CN25: 0 | CO25: 35 | CP25: 0 | CR25: 9.6 | CS25: 13 | CT25: 18 | CU25: 40.6 | CV25: 0.6 | CW25: -0.1 | CX25: 0 | CY25: 40.5 | CZ25: 0 | DB25: 9.6 | DC25: 7 | DD25: 11 | DE25: 27.6 | DF25: 0.6 | DG25: -0.1 | DH25: 0 | DI25: 27.5 | DJ25: 0 | DL25: 8.9 | DM25: 5 | DN25: 19 | DO25: 32.9 | DP25: 0.9 | DQ25: 0 | DR25: 0.1 | DS25: 33 | DT25: 0 | DV25: 9 | DW25: 6.5 | DX25: 16 | DY25: 31.5 | DZ25: 0.5 | EA25: 0 | EB25: 0 | EC25: 31.5 | ED25: 0 | EF25: 3.7 | EG25: 7.5 | EH25: 7 | EI25: 18.2 | EK25: 5.9 | EL25: 6.5 | EM25: 10.5 | EN25: 22.9 | EP25: 41.1 | EQ25: 0.1 | ER25: -0.1 | ES25: 0 | ET25: 41 | EU25: 0 | EW25: 3.9 | EX25: 6 | EY25: 7 | EZ25: 16.9 | FA25: 0.9 | FB25: 0 | FC25: 0.1 | FD25: 17 | FE25: 0 | FG25: 404.5 | FH25: 0 | FJ25: 3.7 | FK25: 4 | FL25: 7.5 | FM25: 15.2 | FN25: 0.2 | FO25: -0.2 | FP25: 0 | FQ25: 15 | FR25: 0 | FT25: 0 | FV25: 0 | FX25: 0 | FZ25: 1 | GA25: 0 | GB25: 0 | GC25: مبروك النجاح | GF25: مبروك النجاح | GG25: مبروك النجاح
E26: =IF(I26="","",SUBTOTAL(3,I$17:I26)) -> 10 | F26: الشيت السابع عشر | G26: 10 | H26: 110 | I26: محمد10 | J26: لجنة رقم 1 | K26: 4/1 | L26: بنين | M26: 7.6 | N26: 4.75 | O26: 12.5 | P26: 24.85 | Q26: 0.85 | R26: 0 | S26: 0.15 | T26: 25 | U26: 0 | W26: 7 | X26: 3.6 | Y26: 12.5 | Z26: 23.1 | AA26: 0.1 | AB26: -0.1 | AC26: 0 | AD26: 23 | AE26: 0 | AG26: 4 | AH26: 5.6 | AI26: 6.8 | AJ26: 16.4 | AK26: 0.4 | AL26: 0.1 | AM26: 0 | AN26: 16.5 | AO26: 0 | AQ26: 39.5 | AR26: 0 | AT26: 7 | AU26: 5 | AV26: 11 | AW26: 23 | AX26: 0 | AY26: 0 | AZ26: 0 | BA26: 23 | BB26: 0 | BD26: 5.5 | BE26: 0.5 | BF26: 12 | BG26: 18 | BH26: 0 | BI26: 0 | BJ26: 0 | BK26: 18 | BL26: 0 | BN26: 9.2 | BO26: 7.5 | BP26: 20 | BQ26: 36.7 | BR26: 0.7 | BS26: -0.2 | BT26: 0 | BU26: 36.5 | BV26: 0 | BX26: 9.9 | BY26: 6.5 | BZ26: 8.5 | CA26: 24.9 | CB26: 0.9 | CC26: 0 | CD26: 0.1 | CE26: 25 | CF26: 0 | CH26: 5.4 | CI26: 5 | CJ26: 15.5 | CK26: 25.9 | CL26: 0.9 | CM26: 0 | CN26: 0.1 | CO26: 26 | CP26: 0 | CR26: 9.4 | CS26: 4.5 | CT26: 10 | CU26: 23.9 | CV26: 0.9 | CW26: 0 | CX26: 0.1 | CY26: 24 | CZ26: 0 | DB26: 9.1 | DC26: 9 | DD26: 11.5 | DE26: 29.6 | DF26: 0.6 | DG26: -0.1 | DH26: 0 | DI26: 29.5 | DJ26: 0 | DL26: 8 | DM26: 5 | DN26: 19 | DO26: 32 | DP26: 0 | DQ26: 0 | DR26: 0 | DS26: 32 | DT26: 0 | DV26: 5 | DW26: 5.5 | DX26: 14.5 | DY26: 25 | DZ26: 0 | EA26: 0 | EB26: 0 | EC26: 25 | ED26: 0 | EF26: 3.16 | EG26: 5 | EH26: 4 | EI26: 12.16 | EK26: 3.2 | EL26: 5 | EM26: 10.5 | EN26: 18.7 | EP26: 30.86 | EQ26: 0.86 | ER26: 0 | ES26: 0.14 | ET26: 31 | EU26: 0 | EW26: 3.9 | EX26: 6 | EY26: 7 | EZ26: 16.9 | FA26: 0.9 | FB26: 0 | FC26: 0.1 | FD26: 17 | FE26: 0 | FG26: 351.5 | FH26: 0 | FJ26: 3.3 | FK26: 4 | FL26: 7.5 | FM26: 14.8 | FN26: 0.8 | FO26: 0 | FP26: 0.2 | FQ26: 15 | FR26: 0 | FT26: 0 | FV26: 0 | FX26: 0 | FZ26: 1 | GA26: 0 | GB26: 0 | GC26: مبروك النجاح | GF26: مبروك النجاح | GG26: مبروك النجاح
E27: =IF(I27="","",SUBTOTAL(3,I$17:I27)) -> 11 | F27: الشيت السابع عشر | G27: 11 | H27: 111 | I27: محمد11 | J27: لجنة رقم 1 | K27: 5/1 | L27: بنين | M27: 7.6 | N27: 5 | O27: 8.75 | P27: 21.35 | Q27: 0.35 | R27: 0.15 | S27: 0 | T27: 21.5 | U27: 1 | V27: عربى * | W27: 8.3 | X27: 2 | Y27: 9.6 | Z27: 19.9 | AA27: 0.9 | AB27: 0 | AC27: 0.1 | AD27: 20 | AE27: 0 | AG27: 4 | AH27: 6 | AI27: 0 | AJ27: 10 | AK27: 0 | AL27: 0 | AM27: 0 | AN27: 10 | AO27: 1 | AP27: فرنساوى* | AQ27: 30 | AR27: 0 | AT27: 7 | AU27: 5 | AV27: 0 | AW27: 12 | AX27: 0 | AY27: 0 | AZ27: 0 | BA27: 12 | BB27: 1 | BC27: جغرافيا* | BD27: 5.5 | BE27: 1 | BF27: 0 | BG27: 6.5 | BH27: 0.5 | BI27: 0 | BJ27: 0 | BK27: 6.5 | BL27: 1 | BM27: رياضة* | BN27: 8.8 | BO27: 4.5 | BP27: 0 | BQ27: 13.3 | BR27: 0.3 | BS27: 0.2 | BT27: 0 | BU27: 13.5 | BV27: 1 | BW27: إقتصاد* | BX27: 8.4 | BY27: 2.5 | BZ27: 0 | CA27: 10.9 | CB27: 0.9 | CC27: 0 | CD27: 0.1 | CE27: 11 | CF27: 1 | CG27: محاسبة* | CH27: 8.1 | CI27: 1.5 | CJ27: 0 | CK27: 9.6 | CL27: 0.6 | CM27: -0.1 | CN27: 0 | CO27: 9.5 | CP27: 1 | CQ27: سكرتارية عربى * | CR27: 8.7 | CS27: 0 | CT27: 0 | CU27: 8.7 | CV27: 0.7 | CW27: -0.2 | CX27: 0 | CY27: 8.5 | CZ27: 1 | DA27: سكرتارية انجليزي* | DB27: 8.8 | DC27: 10.5 | DD27: 10.5 | DE27: 29.8 | DF27: 0.8 | DG27: 0 | DH27: 0.2 | DI27: 30 | DJ27: 0 | DL27: 8.7 | DM27: 3 | DN27: 0 | DO27: 11.7 | DP27: 0.7 | DQ27: -0.2 | DR27: 0 | DS27: 11.5 | DT27: 1 | DU27: قانون تجاري* | DV27: 9.8 | DW27: 5 | DX27: 0 | DY27: 14.8 | DZ27: 0.8 | EA27: 0 | EB27: 0.2 | EC27: 15 | ED27: 1 | EE27: مبادئ إدارة الاعمال * | EF27: 3.4 | EG27: 6 | EH27: 7 | EI27: 16.4 | EK27: 3.4 | EL27: 3.5 | EM27: 10 | EN27: 16.9 | EP27: 33.3 | EQ27: 0.3 | ER27: 0.2 | ES27: 0 | ET27: 33.5 | EU27: 0 | EW27: 3.3 | EX27: 5 | EY27: 0 | EZ27: 8.3 | FA27: 0.3 | FB27: 0.2 | FC27: 0 | FD27: 8.5 | FE27: 1 | FF27: تربية وطنية * | FG27: 211 | FH27: 1 | FI27: كلى* | FJ27: 3.6 | FK27: 3.25 | FL27: 6 | FM27: 12.85 | FN27: 0.85 | FO27: 0 | FP27: 0.15 | FQ27: 13 | FR27: 0 | FT27: 0 | FV27: 1 | FW27: فرنساوى* | FX27: 11 | FZ27: 0 | GA27: 0 | GB27: 1 | GE27: راسب في *عربى * فرنساوى* جغرافيا* رياضة* إقتصاد* محاسبة* سكرتارية عربى * سكرتارية انجليزي* قانون تجاري* مبادئ إدارة الاعمال * تربية وطنية * كلى* | GF27: راسب في * | GG27: راسب في *عربى * فرنساوى* جغرافيا* رياضة* إقتصاد* محاسبة* سكرتارية عربى * سكرتارية انجليزي* قانون تجاري* مبادئ إدارة الاعمال * تربية وطنية * كلى*
